Cogmind - Beta 17.1 @@@ ROGUE MODE // 2026.08.27 @ 09:17:25 Player: Six of Ten Result: Destroyed by D-53 Grenadier with Mini Grenade Launcher Performance ------------- Evolutions (0) 0 Regions Visited (2) 400 Robots Destroyed (6) 30 Value Destroyed (84) 84 Prototype IDs (0) 0 Alien Tech Used (0) 0 Bonus (-32) -32 TOTAL SCORE: 482 Bonus ------- Friendly Fire -32 Cogmind --------- Core Integrity 0/250 Matter 191/300 Energy 84/100 System Corruption 0% Temperature Cool (0) Movement Rolling (100) Location -10/Mines Parts ------- > --- POWER (1) -------- (None) > --- PROPULSION (2) --- Compact Wheel > --- UTILITY (2) ------ Medium Storage Unit > --- WEAPON (2) ------- (None) > --- INVENTORY (10) --- Ion Engine Compact Wheel Small Storage Unit Light EM Pulse Cannon Light EM Pulse Cannon Light Assault Rifle Rocket Launcher Mining Laser Explosive Trap Peak State ------------ > --- POWER ------------ Ion Engine > --- PROPULSION ------- Light Treads Light Treads > --- UTILITY ---------- Heat Sink Medium Storage Unit > --- WEAPON ----------- Assault Rifle Rocket Launcher > --- INVENTORY -------- Ion Engine Compact Wheel Compact Wheel Small Storage Unit Light EM Pulse Cannon Light EM Pulse Cannon Light Assault Rifle Rocket Launcher Mining Laser [Rating: 9] Favorites ----------- Power Ion Engine Engine Ion Engine Propulsion Light Treads Treads Light Treads Wheel Compact Wheel Utility Small Storage Unit Device Heat Sink Storage Small Storage Unit Weapon Assault Rifle Ballistic Gun Assault Rifle Launcher Rocket Launcher Build | -11 -10 -10 ------- Run | Yrd Mat Min Slots Evolved . | . . . Power . | . . . Propulsion . | . . . Utility . | . . . Weapon . | . . . Parts Attached 11 | 6 2 3 Power 1 | 1 . . Engine 1 | 1 . . Core . | . . . Reactor . | . . . Propulsion 3 | 2 . 1 Treads 2 | 2 . . Leg . | . . . Wheel 1 | . . 1 Hover . | . . . Flight . | . . . Utility 3 | 1 1 1 Device 1 | . 1 . Storage 2 | 1 . 1 Processor . | . . . Hackware . | . . . Protection . | . . . Artifact . | . . . Weapon 4 | 2 1 1 Energy Gun . | . . . Energy Cannon . | . . . Ballistic Gun 3 | 2 1 . Ballistic Cannon . | . . . Launcher 1 | . . 1 Special Weapon . | . . . Impact Weapon . | . . . Slashing Weapon . | . . . Piercing Weapon . | . . . Special Melee Weapon . | . . . Unidentified Prototypes . | . . . Parts Lost 6 | . . 6 Power 1 | . . 1 Propulsion 2 | . . 2 Utility 1 | . . 1 Weapon 2 | . . 2 Highest Loss Streak 6 | . . 6 To Critical Strikes . | . . . Average Backups 7 | 3 7 8 Power . | . 1 1 Propulsion 2 | 2 4 2 Utility . | . . . Weapon 3 | . 2 5 Tool/Special . | . . . Unused Backups 9 | . 4 5 Power 1 | . . 1 Propulsion 4 | . 3 1 Utility . | . . . Weapon 4 | . 1 3 Tool/Special . | . . . Average Slot Usage (%) 94 | . 91 96 Engine 13 | . 14 13 Treads 27 | . 28 26 Device 9 | . 6 13 Storage 14 | . 14 14 Ballistic Gun 26 | . 28 24 Launcher 1 | . . 2 Peak Build Rating 9 | 6 8 9 Average Rating 6 | 4 6 8 On Entrance 4 | . 6 8 Avg Prop Armor Cover (%) . | . . . Naked Turns . | . . . Heaviest Build 22 | 13 14 22 Greatest Support 40 | 40 40 40 Greatest Overweight (x) . | . . . Average Overweight (x) . | . . . Largest Inventory Capacity 10 | 8 8 10 Average Capacity 8 | 7 8 9 Most Carried 10 | 6 8 10 Average Carried 7 | 3 7 9 Final Capacity 10 | 8 8 10 Final Carried 9 | 6 8 9 Class Distribution -------------------- 100% | Mutant Dominant Class ---------------- Mutant | -10/Materials Mutant | -10/Mines Resources | -11 -10 -10 ----------- Run | Yrd Mat Min Matter Collected 332 | 257 29 46 Remotely . | . . . Salvage Created 114 | . 44 70 Parts 10 | . 3 7 Haulers Intercepted . | . . . Recyclers Shooed . | . . . Parts Field Recycled . | . . . Retrieved Matter . | . . . Parts Self-Destructed . | . . . Prevented . | . . . Parts Restored . | . . . Kills | -11 -10 -10 ------- Run | Yrd Mat Min Combat Hostiles Destroyed 9 | . 1 8 Guns 3 | . 1 2 AOE 6 | . . 6 Classes Destroyed 3 | . 1 2 Swarmer 5 | . . 5 Grunt 1 | . 1 . Assembled 3 | . . 3 Best Kill Streak 3 | . 1 3 Combat Bots Only 3 | . 1 3 Max Kills in Single Turn 3 | . 1 3 Gunslinging . | . . . Exploded 3 | . . 3 Melee . | . . . Uniques/NPCs Destroyed . | . . . Combat | -11 -10 -10 -------- Run | Yrd Mat Min Hostile Shots Fired 66 | . 4 62 Missed 16 | . 2 14 Hits 50 | . 2 48 Projectile 50 | . 2 48 AOE 10 | . . 10 Critical Strikes 2 | . . 2 Damage Taken 888 | . 22 866 Core 294 | . . 294 Absorbed by Shields . | . . . Core Remaining (%) 100 | 100 . . Volleys Fired 16 | . 4 12 Largest 2 | . 2 2 Hottest 53 | . 40 53 Shots Fired 31 | . 8 23 Gun 25 | . 8 17 Cannon . | . . . Launcher 6 | . . 6 Special . | . . . Kinetic 25 | . 8 17 Thermal . | . . . Explosive 6 | . . 6 Electromagnetic . | . . . Robot Hit Streak 7 | . 7 4 Robot Miss Streak 3 | . . 3 Penetration Max . | . . . Secondary Targets 1 | . . 1 Max Gunslinging Chain 1 | . . 1 Shots Hit Robots 20 | . 7 13 Core Hits 22 | . 2 20 Critical Kills . | . . . Critical Parts Destroyed 1 | . 1 . Critical Strikes 1 | . 1 . Destroy 1 | . 1 . Melee Attacks . | . . . Impact . | . . . Slashing . | . . . Piercing . | . . . Sneak Attacks . | . . . Combat Hostiles . | . . . Follow-up Attacks . | . . . Damage Inflicted 601 | . 72 529 Guns 178 | . 72 106 Cannons . | . . . Explosions 423 | . . 423 Melee . | . . . Ramming . | . . . Kinetic 178 | . 72 106 Thermal . | . . . Explosive 423 | . . 423 Electromagnetic . | . . . Impact . | . . . Slashing . | . . . Piercing . | . . . Highest Corruption . | . . . Average Corruption . | . . . Corruption Purged . | . . . Corruption Blocked . | . . . Overload Shots . | . . . Overflow Damage 3 | . . 3 Projectiles . | . . . Explosions 3 | . . 3 Melee . | . . . Knockbacks . | . . . Impact . | . . . Kinetic . | . . . Secondary . | . . . Self-Inflicted Damage 31 | . . 31 Shots 1 | . . 1 Rammed . | . . . Targets Rammed . | . . . Kicked . | . . . Crushed . | . . . Highest Temperature 6 | . 6 . Average Temperature 6 | . 6 . Received Heat Transfer 12 | . 12 . Siege Activations . | . . . Martial Activations . | . . . Shielding Activations . | . . . Robots Disrupted . | . . . Combat Hostiles . | . . . Robots Corrupted . | . . . Combat Hostiles . | . . . Parts Fried . | . . . Impact Corruptions . | . . . Robots Melted . | . . . Combat Hostiles . | . . . Parts Melted . | . . . Heat Transferred . | . . . Parts Sabotaged . | . . . Parts Stolen . | . . . Parts Stripped . | . . . Power Chain Reactions . | . . . Alert | -11 -10 -10 ------- Run | Yrd Mat Min Maximum Alert Level . | . . . Low Security (%) 100 | 100 100 100 Level 1 . | . . . Level 2 . | . . . Level 3 . | . . . Level 4 . | . . . Level 5 . | . . . High Security . | . . . Max Security . | . . . Peak Influence 97 | . 30 97 Initial . | . . . Average 19 | . 4 46 Influence Increases 195 | . 30 165 Destroy 0b10 Robot/C 120 | . 20 100 Destroy Leader 30 | . 10 20 Destroy Structure 30 | . . 30 Lose Combat Pursuer 15 | . . 15 Influence Decreases 160 | . 30 130 Time Decay 100 | . 30 70 Lost Part 60 | . . 60 Squads Dispatched 1 | . 1 . Investigation 1 | . 1 . Extermination . | . . . Reinforcement . | . . . Assault . | . . . Garrison . | . . . Intercept . | . . . Searches Triggered . | . . . Construction Impeded . | . . . Haulers Reinforced . | . . . Active Scanning Responses . | . . . Cargo Convoy Interrupts . | . . . Stealth | -11 -10 -10 --------- Run | Yrd Mat Min Distress Signals . | . . . Communications Jammed . | . . . Distress Signals . | . . . Times Spotted 25 | . 1 24 Peak Tracking Total 20 | . 1 20 Tactical Retreats 2 | . . 2 Traps | -11 -10 -10 ------- Run | Yrd Mat Min Traps Triggered . | . . . Indirectly . | . . . Trap Hack Attempts . | . . . Triggered . | . . . Disarmed . | . . . Reprogrammed . | . . . Reused . | . . . Traps Extracted . | . . . Installed . | . . . Triggered . | . . . Most Traps Carried 1 | . . 1 Machines | -11 -10 -10 ---------- Run | Yrd Mat Min Machines Disabled . | . . . Max in Single Turn . | . . . Machines Repaired . | . . . Machines Dismantled . | . . . Machines Sabotaged . | . . . Overloaded Fab Kills . | . . . Hacking | -11 -10 -10 --------- Run | Yrd Mat Min Machines Accessed 1 | . 1 . Terminals . | . . . Fabricators . | . . . Repair Stations . | . . . Recycling Units 1 | . 1 . Scanalyzers . | . . . Garrison Access . | . . . Total Hacks 2 | . 2 . Successful . | . . . Failed 2 | . 2 . Catastrophic 1 | . 1 . Database Lockouts . | . . . Manual 1 | . 1 . Terminals . | . . . Fabricators . | . . . Repair Stations . | . . . Recycling Units 2 | . 2 . Scanalyzers . | . . . Garrison Access . | . . . Terminal Hacks . | . . . Fabricator Hacks . | . . . Repair Station Hacks . | . . . Recycling Unit Hacks . | . . . Scanalyzer . | . . . Garrison Access Hacks . | . . . Unauthorized Hacks . | . . . Terminals . | . . . Fabricators . | . . . Repair Stations . | . . . Recycling Units . | . . . Scanalyzers . | . . . Garrison Access . | . . . Data Cores Recovered . | . . . Used . | . . . Hacking Detections 1 | . 1 . Full Trace Events 1 | . 1 . Feedback Events . | . . . Feedback Blocked . | . . . Robot Schematics Acquired . | . . . Robots Built . | . . . Authchips . | . . . Time . | . . . Total Robot Build Rating . | . . . Part Schematics Acquired . | . . . Parts Built . | . . . Authchips . | . . . Time . | . . . Total Part Build Rating . | . . . Part Studies Acquired . | . . . Parts Repaired . | . . . Time . | . . . Parts Recycled . | . . . Recycled Matter . | . . . Retrieved Matter . | . . . Retrieved Components . | . . . Parts Scanalyzed . | . . . Part Schematics Acquired . | . . . Parts Damaged . | . . . Bothacking | -11 -10 -10 ------------ Run | Yrd Mat Min Used RIF Installer . | . . . Robots Hacked . | . . . Non-combat . | . . . Combat . | . . . Robot Hacks Applied . | . . . Relay Couplers Released . | . . . Fabnet Peak Effective % . | . . . Robots Rewired . | . . . Allies Hacked . | . . . Hacks Repelled . | . . . Allies | -11 -10 -10 -------- Run | Yrd Mat Min Total Allies . | . . . Largest Group . | . . . Highest-Rated Group . | . . . Highest-Rated Ally . | . . . Total Orders . | . . . Ally Attacks . | . . . Total Damage . | . . . Kills . | . . . Allies Corrupted . | . . . Allies Melted . | . . . Intel | -11 -10 -10 ------- Run | Yrd Mat Min Active Infowar (turns) . | . . . Robot Analysis Total . | . . . Derelict Logs Recovered . | . . . Drone Launches . | . . . Drone Recoveries . | . . . Exploration | -11 -10 -10 ------------- Run | Yrd Mat Min Turns Passed 519 | 77 244 198 Spaces Moved 264 | 43 138 83 Core 5 | 5 . . Treads 258 | 38 138 82 Legs . | . . . Wheels 1 | . . 1 Hover . | . . . Flight . | . . . Fastest Speed 50 | 50 160 100 Average Speed 157 | 147 160 159 Slowest Speed 160 | 160 160 160 Overloaded Moves . | . . . Propulsion Burnouts . | . . . Robots Hopped . | . . . Potential Cave-ins . | . . . Cave-ins Triggered . | . . . Exploration Rate (%) 22 | 3 26 38 Regions Visited 2 Branch Regions 1 Pre-discovered Areas . | . . . Known Exits Taken . | . . . Unknown Exits Taken 2 | 1 1 . Scrap Searched . | . . . Spaces Dug . | . . . Terrain Destroyed 39 | . . 39 Melee . | . . . Projectile . | . . . AOE 39 | . . 39 Terrain Rammed . | . . . Walls Destroyed . | . . . Machines Disabled . | . . . Actions | -11 -10 -10 --------- Run | Yrd Mat Min Total 336 | 54 156 126 Wait 22 | . 1 21 Move 262 | 42 137 83 Hop . | . . . Pick Up 15 | 6 7 2 Fast Attach 7 | 6 1 . Attach 2 | . 1 1 Detach . | . . . Swap 6 | . . 6 Drop 6 | . 5 1 Fire 16 | . 4 12 Melee . | . . . Ram . | . . . Kick . | . . . Crush . | . . . Escape Stasis . | . . . Rewire . | . . . Trap . | . . . Miscellaneous . | . . . Route ------- -11/Scrapyard -10/Materials -10/Mines History --------- Turn | Location | Event 7 | -11/Scrapyard | Discovered new exit (range 15) 78 | -11/Scrapyard | Entered Materials 240 | -10/Materials | Discovered new exit (range 15) 314 | -10/Materials | Build established: Mutant 322 | -10/Materials | Entered Mines 417 | -10/Mines | Found a hidden stash of uninstalled traps 496 | -10/Mines | Assembled infested the area 501 | -10/Mines | Assisted by a Guerilla fighting off Assembled 516 | -10/Mines | Core integrity fell below 50% 520 | -10/Mines | Core integrity fell below 20% 520 | -10/Mines | Destroyed by D-53 Grenadier with Mini Grenade Launcher Last Messages --------------- 00508_ D-53 Grenadier unfolds itself. 00510_ HV Slug penetrates Wall. 00511_ as-28548 destroyed. 00511_ 3B-ZLF(h) destroyed. 00511_ as-14666 destroyed. 00511_ as-98549 destroyed. 00511_ Ion Engine destroyed. 00511_ T-07 Excavator destroyed. 00512_ Heat Sink destroyed. 00513_ as-18113 destroyed. 00515_ Assault Rifle destroyed. 00515_ U-05 Engineer lays Concrete. 00515_ Lgt. Treads destroyed. 00516_ U-05 Engineer lays Concrete. 00517_ Lgt. Treads destroyed. 00517_ U-05 Engineer lays Concrete. 00519_ The unstable cave ceiling collapses. 00519_ Rocket Launcher destroyed. 00519_ as-25074 destroyed. 00519_ U-05 Engineer lays Concrete. Map ----- +----------------------------------------------------+ | ??????????????????????????????## #??????? | | ???????????????????????????????## ##??????? | | ?????????????????????????###???## ##???????? | | ????????????????????????## #?## ##???????? | | ???????????????????????## ## #???????? | | ??????????????????????## #???????? | | ??????????????????????# ##???????? | | ??????????????????????# ##????????? | | ??????????????????????# ##?????????? | | ??????????????????????# ##??????????? | | ??????????????????????# #???????????? | | ??????????????????????## #???????????? | | ???????????????????????## ##???????????? | | ????????????????????????## % #???????????? | | ??????????? ????????????## ####???????????? | | ??????????? ????????????# ##??????????????? | | ?????????? ??????????## ##???????????????? | | ?????????? ????????## #????????????????? | | ????????? a #???????# ##????????????????? | | ????????? #####??# #####??????????????? | | ????????? a # ### u ##?????????????? | | ???????? #####?????????? | | ???????? a u % ??????? | | ??????? a % d #??????? | | ??????? a d ## ##??????? | | ???????# % = @ #???????????????? | | ???????# #???????????????? | | ????????## #???????????????? | | ???????? ###???????????????? | | ????????# ## #####?????????????????? | | ?????????### ??#######?????????????????????? | | ???????????#### ???????????????????????????????? | | ??????????????###????????????????????????????????? | | ?????????????????????????????????????????????????? | | ?????????????????????????????????????????????????? | | | | | | | | | | | | | | | | | | | | | | | | | | | | | | | +----------------------------------------------------+ Best States ------------- Heat Dissipation 35 Energy Generation 10 Energy Capacity 250 Matter Stores 300 Matter Capacity 300 Sight Range 16 Terrain Scan Density 10 Evasion (%) 40 Recoil Reduction 2 Item Schematics ----------------- None Robot Schematics ------------------ None Fabricated ------------ Nothing Repaired ---------- Nothing Studied --------- None Alien Tech Used ----------------- None Achievements -------------- None Challenges ------------ None Game ------ Seed ArcsightNeutrinoRailcannon Manual? 0 Play Time 00:06:53 Cumulative 58.7 hours Start 2026.08.27 @ 09:12:44 End 2026.08.27 @ 09:17:25 Sessions 1 Manual Loads 0 Difficulty Rogue Special Mode None Game No. 72 Rogue 72 Adventurer 0 Explorer 0 Win Type - Total 0 Types 0/0/0/0/0/0/0/0/0/0 Lore% 23 Gallery% 35 Achievement% 28 Wizard Run 0 Options --------- Layout 0 ASCII 1 Keyboard 0 Movement Mouse Keybinds 0 Fullscreen 2 Font 18/SmallcapsGlow Map View 76x50 Zoom Use 0% Tactical HUD 1 Map Filters NONE Filters NONE Steam 1 RUN: 3a4d28ab-765f-46a1-9ce7-b39d734b8307